bitfinex/quotes_ETHUSD_20250616
["timestamp","ask_amount","ask_price","bid_price","bid_amount"]
[1750106811484,0.36795273,2675.2,2674.7,3.73867138]
[1750106811685,8.50014459,2675.8,2674.8,0.7668]
[1750106811984,0.85001446,2675.7,2674.8,0.80418584]
[1750106812174,3.73763807,2675.5,2674.8,0.80418584]
[1750106812378,3.73763807,2675.5,2674.9,3.73839981]
[1750106812574,3.73763807,2675.5,2675.0,3.73830946]
[1750106815178,3.73754298,2675.6,2675.1,3.7381349]
[1750106816974,0.3712985,2675.8,2674.9,3.738367]
[1750106817180,3.73759607,2675.6,2674.9,4.19266382]
[1750106817375,10.0,2675.9,2675.3,3.73779732]
[1750106817580,3.73726435,2675.8,2675.3,3.73779732]
[1750106817793,4.10452334,2675.8,2675.3,3.73779732]
[1750106818105,4.10452334,2675.8,2675.2,3.73796841]
[1750106818487,3.73708897,2675.9,2675.4,3.73767249]
[1750106818488,3.73712929,2675.9,2675.4,3.73767249]
[1750106818654,13.73712929,2675.9,2675.3,4.50462918]
[1750106818861,3.73722241,2675.8,2675.3,0.7668]
[1750106819281,3.73829737,2675.1,2674.7,0.7668]
[1750106819485,8.50014459,2675.4,2674.7,0.7668]
[1750106820007,3.73846879,2674.9,2674.7,0.7668]
[1750106820320,3.73837094,2675.0,2674.7,0.7668]
[1750106820677,0.37948974,2675.1,2674.7,0.7668]
[1750106820878,10.8212,2675.5,2674.7,0.7668]
[1750106821075,3.73859727,2674.8,2673.8,7.146]
[1750106821274,10.0,2674.9,2674.3,0.7944]
[1750106821649,3.73928191,2674.4,2674.0,0.7944]
[1750106821785,3.73929959,2674.3,2674.0,0.7944]
[1750106821990,3.73943609,2674.2,2674.0,0.7944]
[1750106822611,8.3064,2674.8,2674.0,3.73964339]
[1750106822780,10.99157148,2674.7,2673.9,3.73978577]
[1750106823187,10.99157148,2674.7,2673.8,0.7643]
[1750106823410,3.73922411,2674.4,2673.9,3.7397698]
[1750106824217,3.73890479,2674.6,2673.9,3.7397698]
[1750106824381,3.73890479,2674.6,2674.1,3.78950722]
[1750106824382,3.73891293,2674.6,2674.1,3.78950722]
[1750106824782,5.21218978,2674.5,2674.1,0.05]
[1750106825012,10.0,2674.3,2674.1,0.05]
[1750106825349,3.73917135,2674.4,2674.1,0.05]
[1750106825489,3.73930112,2674.3,2674.1,0.05]
[1750106826300,13.73904344,2674.5,2674.1,0.05]
[1750106826734,3.7392235,2674.4,2674.1,0.05]
[1750106826937,3.73930474,2674.3,2674.1,0.05]
[1750106827085,3.73943609,2674.2,2674.1,0.05]
[1750106827513,4.48730059,2674.2,2674.1,0.05]
[1750106828297,7.51430059,2674.2,2674.1,0.05]
[1750106828488,17.51430059,2674.2,2674.1,0.05]
[1750106829221,24.93830059,2674.2,2674.1,0.05]
[1750106829439,25.72460059,2674.2,2674.1,0.05]
[1750106830487,25.72460059,2674.2,2674.1,0.00157246]
[1750106830887,15.82360059,2674.2,2674.1,0.00157246]
[1750106831087,25.62460059,2674.2,2674.1,0.00157246]
[1750106831817,25.61760059,2674.2,2674.1,0.00157246]
[1750106833843,25.61960059,2674.2,2674.1,0.00157246]
[1750106834699,10.0,2674.1,2673.1,0.05]
[1750106834898,3.74083495,2673.2,2673.1,0.05]
[1750106835713,4.29083495,2673.2,2673.1,0.05]
[1750106835915,15.06753495,2673.2,2673.1,0.05]
[1750106837394,15.44812553,2673.2,2673.1,0.05]
[1750106837599,18.102034,2673.2,2673.1,0.05]
[1750106838438,27.848034,2673.2,2673.1,0.05]
[1750106839235,30.65304251,2673.2,2673.1,0.05]
[1750106839547,21.65712335,2673.2,2673.1,0.05]
[1750106839836,27.834034,2673.2,2673.1,0.05]
[1750106841243,27.819034,2673.2,2673.1,0.05]
[1750106843442,16.51942553,2673.2,2673.1,0.05]
[1750106843753,23.83842553,2673.2,2673.1,0.05]
[1750106844251,23.81342553,2673.2,2673.1,0.05]
[1750106845103,12.77859058,2673.2,2673.1,0.05]
[1750106846009,17.06942553,2673.2,2673.1,0.05]
[1750106848111,27.98190548,2673.2,2673.1,0.05]
[1750106850909,39.99798604,2673.2,2673.1,0.05]
[1750106851110,39.43297753,2673.2,2673.1,0.05]
[1750106851311,39.43297753,2673.2,2672.7,0.2139445]
[1750106851312,5.11889479,2672.8,2672.7,0.2139445]
[1750106851539,4.29223486,2672.2,2672.1,0.05]
[1750106851716,34.46480691,2672.2,2672.1,0.05]
[1750106851917,10.0,2672.2,2672.1,0.05]
[1750106852112,12.319,2672.2,2672.1,0.05]
[1750106854273,16.06123486,2672.2,2672.1,0.05]
[1750106854477,12.319,2672.2,2672.1,0.05]
[1750106854779,16.06123486,2672.2,2672.1,0.05]
[1750106857681,0.55,2672.5,2672.1,0.05]
[1750106857887,13.74202713,2672.4,2672.1,0.05]
[1750106858067,3.74128091,2672.9,2672.1,0.05]
[1750106858068,10.0,2672.9,2672.2,0.8173]
[1750106858272,3.74170583,2672.6,2672.2,0.8173]
[1750106858469,10.0,2672.5,2672.2,0.8173]
[1750106858672,10.0,2672.6,2672.2,4.55942997]
[1750106859044,3.74169785,2672.6,2672.2,0.8173]
[1750106859451,13.74160053,2672.7,2672.2,4.55952533]
[1750106859694,10.0,2672.7,2672.3,3.74208534]
[1750106859866,10.0,2672.7,2672.2,4.55947437]
[1750106859867,13.7415484,2672.7,2672.2,4.55947437]
[1750106860265,20.9305484,2672.7,2672.2,4.55947437]
[1750106860473,3.74169261,2672.6,2672.2,0.8173]
[1750106860679,20.93060567,2672.7,2672.2,4.55953207]
[1750106861008,3.74169072,2672.6,2672.2,4.55946318]
[1750106861204,3.74169072,2672.6,2672.2,0.8173]
[1750106861718,20.91656507,2672.7,2672.2,0.8173]
[1750106861899,20.91656507,2672.7,2672.3,3.74208799]
[1750106862098,20.91656507,2672.7,2672.2,4.55945919]
[1750106862285,17.175,2672.7,2672.3,3.74200896]
[1750106862485,20.89755575,2672.7,2672.2,0.8173]
[1750106862689,10.0,2672.7,2672.2,0.85471964]
[1750106862870,3.74177378,2672.6,2672.2,0.8173]
[1750106863387,20.89747412,2672.8,2672.3,3.74205817]
[1750106863591,10.0,2672.9,2672.3,3.74209482]
[1750106863908,3.74140399,2672.8,2672.4,3.74189713]
[1750106864093,3.74140399,2672.8,2672.3,3.74203778]
[1750106864402,3.7417567,2672.6,2672.2,0.8173]
[1750106864582,17.76557205,2672.7,2672.2,0.8173]
[1750106864776,21.50715429,2672.7,2672.2,0.8173]
[1750106865000,3.74167477,2672.6,2672.2,0.8173]
[1750106865171,3.74181752,2672.5,2672.2,0.8173]
[1750106865367,3.74174238,2672.6,2672.2,0.8173]
[1750106865676,5.98041619,2672.8,2672.3,3.74201087]
[1750106865882,7.132,2672.7,2672.3,3.74201087]
[1750106866103,5.98041619,2672.8,2672.3,3.74201087]
[1750106867800,10.0,2672.8,2672.4,3.74194107]
[1750106868007,13.74139974,2672.8,2672.4,3.74194107]
[1750106868209,13.74139974,2672.8,2672.3,3.74201968]
[1750106868576,13.74139974,2672.8,2672.3,3.74198585]
[1750106868976,3.74156526,2672.7,2672.2,4.55947363]
[1750106869412,3.74167898,2672.6,2672.2,4.55947363]
[1750106869708,3.74167898,2672.6,2672.2,0.8173]
[1750106870113,3.74183345,2672.5,2672.2,0.8173]
[1750106870411,3.74197391,2672.4,2672.2,0.8173]
[1750106870774,3.7418895,2672.5,2672.2,0.8173]
[1750106870975,5.38439355,2672.6,2672.2,0.8173]
[1750106871172,3.74172901,2672.6,2672.2,0.8173]
[1750106871809,3.74159364,2672.7,2672.2,0.8173]
[1750106872011,3.74159364,2672.7,2672.2,4.55951616]
[1750106872402,3.7416807,2672.6,2672.2,4.55951616]
[1750106872912,3.74160521,2672.7,2672.2,4.55951616]
[1750106873798,12.68496643,2672.8,2672.2,0.8173]
[1750106873984,10.0,2672.8,2672.4,3.74189153]
[1750106874212,13.74141129,2672.8,2672.4,3.74189153]
[1750106874377,13.74141129,2672.8,2672.3,3.7420195]
[1750106874578,13.74141129,2672.8,2672.4,3.74194897]
[1750106875318,10.0,2672.8,2672.4,3.74194897]
[1750106875499,13.74140161,2672.8,2672.3,3.74201309]
[1750106878830,13.74140161,2672.8,2672.4,3.74193038]
[1750106878831,10.0,2672.8,2672.4,3.74193038]
[1750106878996,13.74139841,2672.8,2672.4,3.74193038]
[1750106879408,12.154,2672.9,2672.5,3.74172764]
[1750106879583,22.91626145,2672.9,2672.4,3.74187363]
[1750106880723,3.7414021,2672.8,2672.4,3.74187363]
[1750106881217,22.89833087,2672.9,2672.4,3.74187363]
[1750106881524,22.89833087,2672.9,2672.5,3.74179269]
[1750106881773,22.89826147,2672.9,2672.5,3.74179269]
[1750106882023,3.74141131,2672.8,2672.4,3.74188431]
[1750106883111,22.8983306,2672.9,2672.4,3.74188431]
[1750106883306,22.8813306,2672.9,2672.4,3.74188431]
[1750106883718,3.7415289,2672.8,2672.3,3.74202882]
[1750106884224,14.36561523,2672.4,2672.1,0.05]
[1750106884395,3.74217018,2672.3,2672.1,0.05]
[1750106885224,3.74220804,2672.3,2672.1,0.05]
[1750106885424,3.74223486,2672.2,2672.1,0.05]
[1750106885598,6.25043636,2672.2,2672.1,0.05]
[1750106885800,2.5082015,2672.2,2672.1,0.05]
[1750106886002,4.51021536,2673.0,2672.6,3.74166325]
[1750106886194,3.74125554,2672.9,2672.5,3.74181043]
[1750106887100,3.74139571,2672.8,2672.1,0.8459]
[1750106887306,3.74139571,2672.8,2672.3,3.74201421]
[1750106887704,3.74153553,2672.7,2672.3,3.74201421]
[1750106887908,3.74178507,2672.6,2672.1,4.58820964]
[1750106888091,3.74178507,2672.6,2672.2,3.74222901]
[1750106888801,3.74194541,2672.5,2672.1,0.8459]
[1750106889012,12.4487474,2672.8,2672.1,0.05]
[1750106889013,23.14827127,2672.8,2672.1,0.05]
[1750106889238,3.74214677,2672.3,2672.1,0.05]
[1750106889534,13.74202201,2672.4,2672.1,0.05]
[1750106890223,3.74214892,2672.3,2672.1,0.05]
[1750106892508,13.74201702,2672.4,2672.1,0.05]
[1750106893317,3.74210824,2672.3,2672.1,0.05]
[1750106894232,3.74223486,2672.2,2672.1,0.05]
[1750106895035,2.81530203,2672.3,2672.1,0.05]
[1750106895330,6.55740328,2672.3,2672.1,0.05]
[1750106897461,24.36580691,2672.2,2672.1,0.05]
[1750106897827,24.91580691,2672.2,2672.1,0.05]
[1750106898162,26.74098226,2672.2,2672.1,0.05]
[1750106898771,28.13289077,2672.2,2672.1,0.05]
[1750106899064,25.59978583,2672.2,2672.1,0.05]
[1750106899867,33.39169648,2672.2,2672.1,0.05]
[1750106900733,33.95670499,2672.2,2672.1,0.05]
[1750106900931,37.09178505,2672.2,2672.1,0.05]
[1750106901242,37.68386589,2672.2,2672.1,0.05]
[1750106902049,37.68386589,2672.2,2671.1,0.05]
[1750106902050,13.74363581,2671.2,2671.1,0.05]
[1750106902357,14.29363581,2671.2,2671.1,0.05]
[1750106902529,14.67221767,2671.2,2671.1,0.05]
[1750106904473,21.53921767,2671.2,2671.1,0.05]
[1750106904671,10.37858186,2671.2,2671.1,0.05]
[1750106904973,2.069,2671.2,2671.1,3.79377597]
[1750106905174,2.069,2671.9,2671.1,1.1856776]
[1750106905477,3.74279511,2671.8,2671.1,4.5500321]
[1750106905778,3.74313961,2671.6,2671.1,0.8063]
[1750106906073,3.74301184,2671.7,2671.2,3.74360996]
[1750106906279,10.0,2671.6,2671.2,3.74362497]
[1750106906480,3.74300602,2671.7,2671.1,0.8063]
[1750106906481,3.74324468,2671.5,2671.1,0.8063]
[1750106906631,3.74330065,2671.5,2671.1,0.8063]
[1750106907369,3.74328614,2671.5,2671.1,0.8063]
[1750106907667,13.74328614,2671.5,2671.1,0.8063]
[1750106908767,13.74328614,2671.5,2671.1,0.05]
[1750106908768,3.74336008,2671.4,2671.1,0.05]
[1750106908947,3.74354185,2671.3,2671.1,0.05]
[1750106909133,3.74363581,2671.2,2671.1,0.05]
[1750106909332,24.92710214,2671.2,2671.1,0.05]
[1750106912562,33.80710214,2671.2,2671.1,0.05]
[1750106914873,23.17363581,2671.2,2671.1,0.05]
[1750106915093,13.38147075,2671.2,2671.1,0.05]
[1750106915383,12.069,2671.2,2671.1,0.05]
[1750106915737,0.37183953,2671.9,2671.1,0.05]
[1750106915943,3.74300508,2671.7,2671.2,3.74350795]
[1750106916177,10.0,2671.6,2671.2,3.74350795]
[1750106916342,4.51251391,2671.9,2671.3,3.74344934]
[1750106916546,2.07,2671.8,2671.5,3.74311794]
[1750106916867,2.07,2671.8,2671.4,3.74324168]
[1750106917075,12.07,2671.8,2671.4,3.74324168]
[1750106917268,12.07,2671.8,2671.1,0.8768]
[1750106917269,2.07,2671.8,2671.2,0.03743241]
[1750106917467,2.07,2671.8,2671.6,3.7429933]
[1750106917955,2.07,2671.8,2671.5,3.74315568]
[1750106918155,2.07,2671.8,2671.6,3.74305226]
[1750106918571,2.07,2671.8,2671.5,3.74312267]
[1750106919292,5.81286287,2671.8,2671.2,3.74351419]
[1750106919503,2.07,2671.8,2671.3,3.7434846]
[1750106919799,2.07,2671.8,2671.3,3.74349567]
[1750106919995,13.7425562,2672.0,2671.3,3.74349567]
[1750106920200,3.74280113,2671.8,2671.3,3.74349567]
[1750106921557,3.74280113,2671.8,2671.4,3.74334506]
[1750106921976,7.00955689,2671.9,2671.4,3.74334506]
[1750106922181,12.069,2672.0,2671.2,0.03743319]
[1750106922427,12.069,2672.0,2671.6,3.74301591]
[1750106922635,15.81152785,2672.0,2671.5,3.74314569]
[1750106922989,15.81152785,2672.0,2671.6,3.74306695]
[1750106923203,19.31763916,2672.0,2671.5,3.7431403]
[1750106923399,15.57511131,2672.0,2671.2,0.03743215]
[1750106923606,11.65138816,2672.1,2671.6,0.8052]
[1750106924129,11.65138816,2672.1,2671.7,3.74291743]
[1750106924284,11.65138816,2672.1,2671.6,4.54819784]
[1750106925020,3.74252386,2672.0,2671.6,4.54819784]
[1750106925227,20.45045666,2672.1,2671.6,4.54819784]
[1750106925817,20.45045666,2672.1,2671.7,3.74291599]
[1750106926197,11.65145666,2672.1,2671.7,3.74291599]
[1750106926432,16.708,2672.1,2671.7,3.74291599]
[1750106926729,23.9738422,2672.1,2671.6,4.54819582]
[1750106926930,3.74260106,2672.0,2671.5,3.74315629]
[1750106927446,3.74260106,2672.0,2671.6,3.7430442]
[1750106927816,23.9738938,2672.1,2671.6,3.7430442]
[1750106928194,23.9738938,2672.1,2671.5,3.74317447]
[1750106928195,23.97382249,2672.1,2671.5,3.74317447]
[1750106928395,20.45038192,2672.1,2671.6,3.74300024]
[1750106928596,3.74269978,2671.9,2671.4,3.74323026]
[1750106928825,3.74269978,2671.9,2671.5,3.74319699]
[1750106929134,6.16197304,2671.9,2671.4,3.74327362]
[1750106929434,6.16197344,2671.9,2671.4,3.74327198]
[1750106929811,6.16197344,2671.9,2671.5,3.7431979]
[1750106930732,6.16197344,2671.9,2671.4,3.74335075]
[1750106930733,6.16204118,2671.9,2671.4,3.74335075]
[1750106931835,6.16204118,2671.9,2671.5,3.74321254]
[1750106932249,0.61620412,2671.8,2671.5,3.74321254]
[1750106932413,0.61620412,2671.8,2671.6,3.74303821]
[1750106932748,0.61620412,2671.8,2671.6,3.74305772]
[1750106932950,0.61620412,2671.8,2671.5,3.74315317]
[1750106933124,0.61620412,2671.8,2671.6,3.74303141]
[1750106933446,7.909,2672.1,2671.4,3.74335554]
[1750106933608,1.998,2672.0,2671.8,3.74268794]
[1750106935383,1.998,2672.0,2671.7,3.74285647]
[1750106935720,1.998,2672.0,2671.8,3.74277905]
[1750106935941,1.998,2672.0,2671.7,3.74285134]
[1750106936553,1.998,2672.0,2671.7,3.74286039]
[1750106937519,1.998,2672.0,2671.8,3.74278458]
[1750106937719,7.909,2672.1,2671.4,3.78077775]
[1750106937924,7.909,2672.1,2671.6,3.74302638]
[1750106938124,7.909,2672.1,2671.7,3.7429352]
[1750106938424,7.909,2672.1,2671.8,3.74279106]
[1750106939040,7.909,2672.1,2671.7,3.74287542]
[1750106939245,15.4664543,2672.1,2671.7,3.74287542]
[1750106940855,3.74251843,2672.0,2671.5,3.74315156]
[1750106941154,3.74268184,2671.9,2671.4,3.74324401]
[1750106941360,3.74268184,2671.9,2671.3,4.54861477]
[1750106941526,3.74268184,2671.9,2671.4,3.74335554]
[1750106941726,6.41300569,2671.9,2671.5,3.74320521]
[1750106942271,11.23691635,2671.8,2671.3,0.8052]
[1750106942423,11.23691635,2671.8,2671.4,3.74331814]
[1750106942424,7.49409918,2671.8,2671.4,3.74331814]
[1750106942854,11.23692539,2671.8,2671.3,4.54862853]
[1750106943057,11.70685951,2671.8,2671.3,3.74342853]
[1750106943226,11.70685951,2671.8,2671.4,3.74332631]
[1750106943630,7.9640333,2671.8,2671.5,3.74320231]
[1750106944042,0.46993412,2671.8,2671.5,3.74320231]
[1750106944264,3.7424365,2672.1,2671.1,10.58775381]
[1750106944265,10.0,2672.1,2671.1,18.08185299]
[1750106944431,10.0,2672.1,2671.8,3.74273075]
[1750106945054,10.0,2672.1,2671.6,4.56169471]
[1750106945055,0.7851,2673.0,2671.7,3.7429352]
[1750106945268,0.11702142,2672.9,2672.7,3.74144707]
[1750106945468,0.11702142,2673.2,2672.9,3.74125481]
[1750106945671,7.49409918,2673.1,2672.5,3.74174196]
[1750106945965,7.49409918,2672.9,2672.5,3.74168346]
[1750106946168,7.49409918,2673.1,2672.2,4.56092111]
[1750106946375,1.998,2673.0,2672.3,3.74209482]
[1750106946556,10.11698555,2673.2,2672.8,3.7413908]
[1750106946760,8.79,2673.1,2672.8,3.7413908]
[1750106947071,1.998,2673.1,2672.9,3.74114671]
[1750106947368,1.998,2673.1,2672.8,3.74134946]
[1750106947868,18.79,2673.2,2672.8,3.74134946]
[1750106948437,22.53088948,2673.2,2672.7,4.56017048]
[1750106948774,18.79,2673.2,2672.7,4.56017048]
[1750106948970,10.0,2673.2,2672.7,4.56017048]
[1750106949173,1.998,2673.1,2672.7,4.56017048]
[1750106949766,5.73899243,2673.1,2672.7,0.8187]
[1750106950650,1.998,2673.1,2672.7,4.56021525]
[1750106950870,5.73900707,2673.1,2672.7,0.8187]
[1750106951076,5.73900707,2673.1,2672.6,3.74154924]
[1750106951383,1.998,2673.1,2672.6,3.7415373]
[1750106951540,1.998,2673.1,2672.7,3.74153477]
[1750106951874,1.998,2673.1,2672.8,3.74139376]
[1750106952642,1.998,2673.1,2672.7,3.74148313]
[1750106953068,5.73901909,2673.1,2672.6,3.74157165]
[1750106953337,4.6247756,2673.1,2672.8,3.7413256]
[1750106953543,10.0,2673.2,2672.6,3.74167477]
[1750106953742,10.0,2673.2,2672.8,3.74132112]
[1750106954164,10.0,2673.2,2672.1,8.41224337]
[1750106954165,0.7988,2673.0,2672.1,8.41224337]
[1750106954367,0.7988,2673.0,2672.3,3.74201014]
[1750106954368,3.74145712,2672.8,2672.3,3.74201014]
[1750106954681,3.74157297,2672.7,2672.2,3.74216077]
[1750106955002,3.7416858,2672.6,2672.1,4.54434896]
[1750106955194,3.74183875,2672.5,2672.1,3.74234896]
[1750106955482,4.49020013,2672.5,2672.0,3.74239836]
[1750106956281,10.0,2672.5,2672.1,3.74236391]
[1750106956484,3.74182661,2672.5,2672.1,3.74236391]
[1750106957082,3.74182661,2672.5,2672.0,3.74243951]
[1750106957886,3.74182661,2672.5,2672.1,3.74235341]
[1750106958049,10.0,2672.5,2672.2,3.74222169]
[1750106958384,13.74173366,2672.6,2672.1,3.74232157]
[1750106958685,16.50518308,2672.6,2672.1,3.74232157]
[1750106958871,3.74183796,2672.5,2672.0,3.74244655]
[1750106959274,3.74195836,2672.4,2671.9,3.74260558]
[1750106959486,2.02472329,2672.4,2672.0,3.74248591]
[1750106959653,4.52997898,2672.5,2672.0,3.74248591]
[1750106961207,7.5711,2672.5,2671.5,0.7736]
[1750106961352,3.74201873,2672.4,2671.9,3.74257274]
[1750106961687,3.74201873,2672.4,2672.0,3.74248843]
[1750106961906,6.51893585,2672.5,2672.0,3.74248843]
[1750106962104,6.72249971,2672.4,2671.9,3.74258064]
[1750106962606,6.72253436,2672.4,2671.9,3.74263487]
[1750106964273,6.72253436,2672.4,2672.0,3.74247666]
[1750106964489,2.98050984,2672.4,2672.0,3.74247666]
[1750106965553,3.74069502,2673.3,2672.3,10.61975637]
[1750106965766,3.74077784,2673.3,2672.7,3.74151503]
[1750106965963,3.74108787,2673.1,2672.6,3.74165515]
[1750106966163,4.48927075,2673.1,2672.6,3.74165515]
[1750106966364,3.7411928,2673.0,2672.2,6.778]
[1750106966565,3.7411928,2673.0,2672.5,3.74179663]
[1750106966766,4.48921572,2673.1,2672.6,3.74166634]
[1750106967198,0.55,2672.9,2672.1,0.8285]
[1750106967387,14.87213894,2672.8,2672.2,3.74212251]
[1750106967587,6.778,2672.7,2672.3,3.74208277]
[1750106968369,10.51958015,2672.7,2672.2,3.74221374]
[1750106968764,6.778,2672.7,2672.2,3.74221374]
[1750106969590,6.778,2672.7,2672.3,3.74202]
[1750106969803,2.547365,2672.6,2672.3,3.74208053]
[1750106970399,2.547365,2672.6,2672.2,3.74218832]
[1750106970695,11.989,2672.5,2672.0,3.74240218]
[1750106970898,15.73083355,2672.5,2672.0,3.74240218]
[1750106971211,15.73083355,2672.5,2671.9,3.74264379]
[1750106971212,19.01644018,2672.5,2671.9,3.74258462]
[1750106971500,0.55,2672.9,2671.9,3.74258462]
[1750106971501,10.0,2673.0,2672.8,3.74128372]
[1750106971703,2.7667,2673.1,2672.8,3.74128372]
[1750106972070,2.7667,2673.1,2672.9,3.7412469]
[1750106972308,0.7777,2673.1,2672.8,3.74133202]
[1750106972802,0.7777,2673.1,2672.9,3.74124001]
[1750106973111,1.99,2673.2,2672.5,0.7543]
[1750106973312,4.125272,2674.1,2672.5,0.7543]
[1750106973313,9.9,2673.7,2673.1,0.7543]
[1750106973514,10.0,2673.6,2673.2,3.74083495]
[1750106973701,9.9,2673.7,2673.4,3.74043856]
[1750106974306,7.91,2673.7,2673.5,3.74038648]
[1750106974506,9.9,2673.7,2673.6,3.74027528]
[1750106974706,7.91,2673.7,2673.6,3.74027528]
[1750106974904,0.8334,2673.9,2673.8,3.73999551]
[1750106974905,0.05,2673.9,2673.8,3.73999551]
[1750106975411,0.05,2673.9,2673.7,3.7400607]
[1750106975615,0.05,2673.9,2673.6,3.74020378]
[1750106975821,0.05,2673.9,2673.1,4.49524924]
[1750106976008,0.05,2673.9,2673.7,3.7401332]
[1750106976197,0.05,2673.9,2673.6,3.74019643]
[1750106976392,0.05,2673.9,2673.3,3.74069502]
[1750106976592,0.05,2673.9,2673.5,3.74030509]
[1750106977196,0.05,2673.9,2673.6,3.74027337]
[1750106977506,0.05,2673.9,2673.5,3.74031748]
[1750106977818,5.36781302,2673.9,2673.3,3.74060696]
[1750106978019,0.05,2673.9,2673.1,7.5243]
[1750106978227,0.05,2673.9,2673.6,3.7402604]
[1750106978390,0.05,2673.9,2673.5,3.74034542]
[1750106979202,0.05,2673.9,2673.6,3.74025682]
[1750106979629,2.039,2673.9,2673.6,3.74025682]
[1750106979798,0.05,2673.9,2673.7,3.74009252]
[1750106980310,0.05,2673.9,2673.6,3.74019843]
[1750106980487,0.05,2673.9,2673.7,3.74010605]
[1750106981393,0.05,2673.9,2673.1,7.5243]
[1750106981595,0.05,2673.9,2673.5,3.74032728]
[1750106982031,0.05,2673.9,2673.6,3.7402731]
[1750106982230,0.05,2673.9,2673.6,3.74015795]
[1750106982620,0.05,2673.9,2673.8,3.73999551]
[1750106983319,0.05,2673.9,2673.8,3.77739177]
[1750106983635,0.05,2673.9,2673.8,4.60569218]
[1750106983814,0.05,2673.9,2673.8,5.33379592]
[1750106984017,0.05,2673.9,2673.8,5.37118912]
[1750106984562,3.78855623,2674.9,2674.3,3.73918736]
[1750106984830,0.55,2674.6,2673.9,3.73976723]
[1750106985003,3.73929626,2674.3,2673.4,0.7655]
[1750106985208,3.73943609,2674.2,2673.7,3.74011877]
[1750106985416,0.7926,2674.4,2673.9,3.73982131]
[1750106985602,0.7926,2674.4,2673.9,3.73979457]
[1750106985603,1.975,2674.3,2673.9,3.73979457]
[1750106985808,3.73930754,2674.3,2673.8,3.73987005]
[1750106986034,5.71430754,2674.3,2673.9,3.73984719]
[1750106986232,1.975,2674.3,2673.9,3.73984719]
[1750106986897,10.0,2674.5,2674.1,3.73949423]
[1750106987098,3.7390292,2674.5,2674.0,3.73965646]
[1750106987297,3.7390292,2674.5,2673.9,4.49144796]
[1750106987298,3.7390292,2674.5,2674.1,3.73957178]
[1750106987521,13.73894408,2674.6,2674.1,3.73957178]
[1750106987933,3.73903718,2674.5,2674.0,3.73964226]
[1750106988137,13.73869956,2674.8,2674.0,0.82310902]
[1750106988341,4.54300593,2674.9,2674.0,0.82310902]
[1750106988342,0.05,2674.9,2674.8,3.73859727]
[1750106990439,0.05,2674.9,2674.5,0.8166]
[1750106990943,0.05,2674.9,2674.8,3.73859727]
[1750106991306,0.05,2674.9,2674.7,3.73865558]
[1750106992560,0.8365,2674.9,2674.2,0.8036]
[1750106992768,4.57502742,2674.9,2674.4,3.73907672]
[1750106992915,4.57502742,2674.9,2674.6,3.73886686]
[1750106992916,0.8365,2674.9,2674.6,3.73886686]
[1750106993117,2.8115,2674.9,2674.6,3.73886686]
[1750106993311,2.025,2674.9,2674.6,3.73886686]
[1750106994271,0.05,2674.9,2674.7,3.73872998]
[1750106994853,0.05,2674.9,2674.7,3.73867204]
[1750106995514,0.05,2674.9,2674.6,3.73880856]
[1750106995710,3.78852395,2674.9,2674.4,3.73903038]
[1750106995923,3.78852395,2674.9,2674.5,3.73901312]
[1750106996160,0.05,2674.9,2674.5,3.73901312]
[1750106998058,2.00015783,2674.9,2674.3,3.73919895]
[1750106998268,0.7796,2674.7,2674.3,3.73919895]
[1750106998426,4.51837266,2674.7,2674.3,3.73919895]
[1750106998622,0.7796,2674.7,2674.3,3.73919895]
[1750107002625,0.7796,2674.7,2674.4,3.73915294]
[1750107004452,0.7796,2674.7,2674.3,3.73928441]
[1750107005491,0.05,2674.9,2674.4,14.35734472]
[1750107005797,2.24,2676.5,2675.1,0.7542]
[1750107005966,0.05,2676.9,2676.5,0.7542]
[1750107006166,0.05,2676.9,2676.8,14.35399222]
[1750107007470,0.05,2676.9,2676.8,10.47580394]
[1750107008658,0.05,2676.9,2676.8,10.85211281]
[1750107009760,0.05,2676.9,2676.5,4.49037605]
[1750107009761,0.05,2676.9,2676.5,0.7542]
[1750107009967,0.05,2676.9,2676.6,3.73598778]
[1750107010301,0.05,2676.9,2676.5,10.47216464]
[1750107010658,0.2524,2676.9,2676.1,0.8036]
[1750107010905,0.2524,2676.9,2675.9,8.25782308]
[1750107011106,0.2524,2676.9,2676.2,3.73663079]
[1750107011608,13.98809346,2676.9,2676.1,3.73674978]
[1750107011822,10.8046,2676.7,2676.0,3.73688938]
[1750107012003,13.65745583,2676.7,2676.0,3.73688938]
[1750107012585,17.39342491,2676.7,2675.9,19.1022807]
[1750107012789,17.39342491,2676.7,2676.0,3.73688181]
[1750107013015,3.73609324,2676.6,2675.9,18.72883741]
[1750107013312,1.973,2676.5,2675.9,8.25782308]
[1750107013612,1.973,2676.5,2676.0,3.73681323]
[1750107013833,1.973,2676.5,2675.4,0.37590555]
[1750107013834,0.55,2676.4,2675.4,0.37590555]
[1750107013973,0.55,2676.4,2675.3,3.73787447]
[1750107013974,3.73700665,2676.0,2675.3,3.73787447]
[1750107014169,1.973,2675.9,2675.3,6.732]
[1750107014374,3.73723256,2675.8,2675.1,3.73817504]
[1750107014577,10.0,2675.6,2674.5,1.51052165]
[1750107014815,3.73763167,2675.5,2674.9,3.73844088]
[1750107015506,3.73763167,2675.5,2674.6,7.5203]
[1750107015507,10.0,2675.6,2674.6,0.7883]
[1750107015715,13.73750053,2675.6,2675.0,3.73829264]
[1750107015880,3.73762996,2675.5,2675.0,3.73829264]
[1750107016280,14.50996686,2675.7,2675.1,3.73807477]
[1750107016503,16.83136355,2675.7,2675.1,3.73807477]
[1750107016711,3.73750291,2675.6,2675.0,3.73825238]
[1750107017117,3.7376226,2675.5,2675.0,3.73825238]
[1750107019087,3.73753563,2675.6,2675.1,3.73817455]
[1750107019290,3.73753563,2675.6,2675.0,3.73825308]
[1750107019599,16.83124028,2675.7,2675.0,3.73825308]
[1750107019600,3.73763518,2675.5,2675.0,3.73825308]
[1750107019994,3.73779,2675.4,2674.9,3.73838601]
[1750107020319,3.73762082,2675.5,2675.0,3.7382582]
[1750107020519,1.959,2675.4,2675.0,3.7382582]
[1750107020881,0.7725,2675.7,2675.3,3.73782211]
[1750107021120,1.959,2675.5,2675.3,3.73782211]